{"text_format":"3","workbook":"xlsx","n_sheets":6,"sheets":["Log de Chamada de Vendas","Info. de Contato de Cliente","Antes da Chamada","Primeira Chamada","Informações de Vendas","Acompanhar"],"not_rendered":{"defined_names":14},"read":"whole","date_system":"1900"}

{"sheet":"Log de Chamada de Vendas","index":0,"n_rows":13,"n_cols":7,"rows_kept":13}
[null," Nome da Empresa"]
[null,"Log de chamadas de vendas"]
[null,"Ligar para o nº","Cliente","Empresa","Data","Hora","Anotações"]
[null,1,"Pedro Gonçalves",{"$f":"IF(Log_de_chamadas_de_vendas[[#This Row],[Cliente]]=\"\",\"\",IFERROR(VLOOKUP(Log_de_chamadas_de_vendas[[#This Row],[Cliente]],Info._de_Contato_de_Cliente[],2,0),\"Not Found\"))","v":"ProseWare, Inc."},{"$f":"TODAY()-5","v":"2017-10-08"},"08:30:00"]
[null,2,"Vinícius Monte",{"$f":"IF(Log_de_chamadas_de_vendas[[#This Row],[Cliente]]=\"\",\"\",IFERROR(VLOOKUP(Log_de_chamadas_de_vendas[[#This Row],[Cliente]],Info._de_Contato_de_Cliente[],2,0),\"Not Found\"))","v":"Litware, Inc."},{"$f":"TODAY()-5","v":"2017-10-08"},"09:00:00"]
[null,3,"Brenda Fernandes",{"$f":"IF(Log_de_chamadas_de_vendas[[#This Row],[Cliente]]=\"\",\"\",IFERROR(VLOOKUP(Log_de_chamadas_de_vendas[[#This Row],[Cliente]],Info._de_Contato_de_Cliente[],2,0),\"Not Found\"))","v":"Northwind Traders"},"2017-10-08","09:30:00"]
[null,4,"Paulo Araújo",{"$f":"IF(Log_de_chamadas_de_vendas[[#This Row],[Cliente]]=\"\",\"\",IFERROR(VLOOKUP(Log_de_chamadas_de_vendas[[#This Row],[Cliente]],Info._de_Contato_de_Cliente[],2,0),\"Not Found\"))","v":"Lucerne Publishing"},"2017-10-08","10:00:00"]
[null,5,"Diogo Martins",{"$f":"IF(Log_de_chamadas_de_vendas[[#This Row],[Cliente]]=\"\",\"\",IFERROR(VLOOKUP(Log_de_chamadas_de_vendas[[#This Row],[Cliente]],Info._de_Contato_de_Cliente[],2,0),\"Not Found\"))","v":"Margie's Travel"},"2017-10-08","10:30:00"]
[null,6,"Pedro Gonçalves",{"$f":"IF(Log_de_chamadas_de_vendas[[#This Row],[Cliente]]=\"\",\"\",IFERROR(VLOOKUP(Log_de_chamadas_de_vendas[[#This Row],[Cliente]],Info._de_Contato_de_Cliente[],2,0),\"Not Found\"))","v":"ProseWare, Inc."},{"$f":"TODAY()-3","v":"2017-10-10"},"11:00:00"]
[null,7,"Vinícius Monte",{"$f":"IF(Log_de_chamadas_de_vendas[[#This Row],[Cliente]]=\"\",\"\",IFERROR(VLOOKUP(Log_de_chamadas_de_vendas[[#This Row],[Cliente]],Info._de_Contato_de_Cliente[],2,0),\"Not Found\"))","v":"Litware, Inc."},{"$f":"TODAY()-3","v":"2017-10-10"},"11:30:00"]
[null,8,"Pedro Gonçalves",{"$f":"IF(Log_de_chamadas_de_vendas[[#This Row],[Cliente]]=\"\",\"\",IFERROR(VLOOKUP(Log_de_chamadas_de_vendas[[#This Row],[Cliente]],Info._de_Contato_de_Cliente[],2,0),\"Not Found\"))","v":"ProseWare, Inc."},{"$f":"TODAY()-1","v":"2017-10-12"},"12:00:00"]
[null,9,"Diogo Martins",{"$f":"IF(Log_de_chamadas_de_vendas[[#This Row],[Cliente]]=\"\",\"\",IFERROR(VLOOKUP(Log_de_chamadas_de_vendas[[#This Row],[Cliente]],Info._de_Contato_de_Cliente[],2,0),\"Not Found\"))","v":"Margie's Travel"},{"$f":"TODAY()-1","v":"2017-10-12"},"12:30:00"]
[null,10,"Diogo Martins",{"$f":"IF(Log_de_chamadas_de_vendas[[#This Row],[Cliente]]=\"\",\"\",IFERROR(VLOOKUP(Log_de_chamadas_de_vendas[[#This Row],[Cliente]],Info._de_Contato_de_Cliente[],2,0),\"Not Found\"))","v":"Margie's Travel"},{"$f":"TODAY()","v":"2017-10-13"},"13:00:00"]

{"sheet":"Info. de Contato de Cliente","index":1,"n_rows":8,"n_cols":8,"rows_kept":8}
[null,{"$f":"Nome_da_Empresa","v":" Nome da Empresa"}]
[null,"Informações de Contato do Cliente"]
[null,"Nome do Cliente","Nome da Empresa","Endereço","Cidade, Estado, CEP","Telefone Principal","Telefone Secundário","Email"]
[null,"Vinícius Monte","Litware, Inc.","Rua das flores, 100","São Paulo, SP 123456-000","(51) 3123-0135","(51) 3123-0136","radim@litwareinc.com"]
[null,"Paulo Araújo","Lucerne Publishing","567 Second Ave","Rio de Janeiro, RJ 23456-000","(41) 3123-0198","(41) 3123-0199","paulo@lucernepublishing.com"]
[null,"Diogo Martins","Margie's Travel","Rua das hortênsias, 987","Porto Alegre, RS 34567-000","(81) 3123-0125","(81) 3123-0126","diogo@margiestravel.com"]
[null,"Brenda Fernandes","Northwind Traders","890 N 3rd Ave","Belo Horizonte, MG 45678-000","(51) 3123-0175","(51) 3123-0176","brenda@northwindtraders.com"]
[null,"Pedro Gonçalves","ProseWare, Inc.","Avenida do Estado, 123","Florianópolis, SC 56789-000","(51) 3123-0150","(51) 3123-0151","pedro@proseware.com"]

{"sheet":"Antes da Chamada","index":2,"n_rows":13,"n_cols":3,"rows_kept":13}
[null,{"$f":"Nome_da_Empresa","v":" Nome da Empresa"}]
[null,"Lista de verificação de chamadas de vendas"]
[null,"Caixa de seleção","Antes da chamada"]
[null,null,"Analisar histórico do cliente"]
[null,null,"Analisar o histórico do empregador do cliente"]
[null,null,"Analisar prioridades e estratégia de vendas"]
[null,null,"Adicionar item"]
[null,null,"Adicionar item"]
[null,null,"Adicionar item"]
[null,null,"Adicionar item"]
[null,null,"Adicionar item"]
[null,null,"Adicionar item"]
[null,null,"Adicionar item"]

{"sheet":"Primeira Chamada","index":3,"n_rows":13,"n_cols":3,"rows_kept":13}
[null,{"$f":"Nome_da_Empresa","v":" Nome da Empresa"}]
[null,"Lista de verificação de chamadas de vendas"]
[null,"Caixa de seleção","Primeira chamada"]
[null,null,"Chamada direta para a pessoa adequada"]
[null,null,"Introdução clara"]
[null,null,"Adicionar item"]
[null,null,"Adicionar item"]
[null,null,"Adicionar item"]
[null,null,"Adicionar item"]
[null,null,"Adicionar item"]
[null,null,"Adicionar item"]
[null,null,"Adicionar item"]
[null,null,"Adicionar item"]

{"sheet":"Informações de Vendas","index":4,"n_rows":13,"n_cols":3,"rows_kept":13}
[null,{"$f":"Nome_da_Empresa","v":" Nome da Empresa"}]
[null,"Lista de verificação de chamadas de vendas"]
[null,"Caixa de seleção","Informações de vendas"]
[null,null,"Introdução clara e convincente do produto/serviço"]
[null,null,"Abordar todos os elementos básicos"]
[null,null,"Mencionar a presença na web (por exemplo, site, redes sociais)"]
[null,null,"Adicionar item"]
[null,null,"Adicionar item"]
[null,null,"Adicionar item"]
[null,null,"Adicionar item"]
[null,null,"Adicionar item"]
[null,null,"Adicionar item"]
[null,null,"Adicionar item"]

{"sheet":"Acompanhar","index":5,"n_rows":13,"n_cols":3,"rows_kept":13}
[null,{"$f":"Nome_da_Empresa","v":" Nome da Empresa"}]
[null,"Lista de verificação de chamadas de vendas"]
[null,"Caixa de seleção","Informações de acompanhamento"]
[null,null,"Info. de Contato de Cliente"]
[null,null,"Informações pessoais do cliente"]
[null,null,"Preferências do cliente"]
[null,null,"Contato reagendado?"]
[null,null,"Venda feita?"]
[null,null,"Adicionar item"]
[null,null,"Adicionar item"]
[null,null,"Adicionar item"]
[null,null,"Adicionar item"]
[null,null,"Adicionar item"]